bitfinex/quotes_BTCUSD_20251012
["timestamp","ask_amount","ask_price","bid_price","bid_amount"]
[1760292768584,0.02632536,114280.0,114270.0,0.34292104]
[1760292770081,0.36632536,114280.0,114270.0,0.34292104]
[1760292772106,0.36632536,114280.0,114270.0,0.34494104]
[1760292772901,0.36632536,114280.0,114270.0,0.34394104]
[1760292773270,0.36632536,114280.0,114270.0,0.34494104]
[1760292773670,0.41296536,114280.0,114270.0,0.34494104]
[1760292774054,1.57042865,114280.0,114270.0,0.04412698]
[1760292774638,1.58918484,114280.0,114270.0,0.04312698]
[1760292775494,1.58918484,114280.0,114270.0,0.04212698]
[1760292775707,1.61462065,114280.0,114270.0,0.04212698]
[1760292776269,0.79255965,114280.0,114270.0,0.04212698]
[1760292776474,1.58918484,114280.0,114270.0,0.04212698]
[1760292776678,1.61462065,114280.0,114270.0,0.04212698]
[1760292777862,0.79255965,114280.0,114270.0,0.04212698]
[1760292778056,1.61462065,114280.0,114270.0,0.04212698]
[1760292778607,0.79255965,114280.0,114270.0,0.04212698]
[1760292778959,1.61462065,114280.0,114270.0,0.04212698]
[1760292779321,0.79255965,114280.0,114270.0,0.04212698]
[1760292779522,1.61462065,114280.0,114270.0,0.04212698]
[1760292779927,0.82271155,114280.0,114270.0,0.04212698]
[1760292780128,1.66819822,114280.0,114270.0,0.04212698]
[1760292780617,1.67633952,114280.0,114270.0,0.04212698]
[1760292780813,0.85427852,114280.0,114270.0,0.04212698]
[1760292781004,1.70767168,114280.0,114270.0,0.04212698]
[1760292781651,1.67633952,114280.0,114270.0,0.04212698]
[1760292781848,0.85427852,114280.0,114270.0,0.04212698]
[1760292782011,1.67633952,114280.0,114270.0,0.04212698]
[1760292782847,0.85427852,114280.0,114270.0,0.04212698]
[1760292783068,1.67633952,114280.0,114270.0,0.04212698]
[1760292783901,0.85427852,114280.0,114270.0,0.04212698]
[1760292784189,1.67633952,114280.0,114270.0,0.04212698]
[1760292784446,1.67633037,114280.0,114270.0,0.04212698]
[1760292786143,1.70766253,114280.0,114270.0,0.04212698]
[1760292786723,1.73266252,114280.0,114270.0,0.04212698]
[1760292786906,0.91060152,114280.0,114270.0,0.04212698]
[1760292787247,1.73366252,114280.0,114270.0,0.04212698]
[1760292787551,1.70233036,114280.0,114270.0,0.04212698]
[1760292788842,1.73366252,114280.0,114270.0,0.04212698]
[1760292789054,1.73466252,114280.0,114270.0,0.04212698]
[1760292789504,1.70333036,114280.0,114270.0,0.04212698]
[1760292790164,0.88126936,114280.0,114270.0,0.04212698]
[1760292790635,1.70333036,114280.0,114270.0,0.04212698]
[1760292790963,0.88126936,114280.0,114270.0,0.04212698]
[1760292791163,1.70333036,114280.0,114270.0,0.04212698]
[1760292793593,0.88126936,114280.0,114270.0,0.04212698]
[1760292793815,1.70333036,114280.0,114270.0,0.04212698]
[1760292794463,1.6611485,114280.0,114270.0,0.04212698]
[1760292794664,1.70324949,114280.0,114270.0,0.04212698]
[1760292795171,0.822061,114270.0,114260.0,8.36621442]
[1760292795331,0.822061,114270.0,114260.0,8.14398049]
[1760292795332,1.65262771,114270.0,114260.0,8.14398049]
[1760292795502,1.6776277,114270.0,114260.0,8.14398049]
[1760292795705,1.70913755,114270.0,114260.0,8.14398049]
[1760292795938,1.73547296,114270.0,114260.0,8.14398049]
[1760292796325,1.83647295,114270.0,114260.0,8.14398049]
[1760292796546,1.83747295,114270.0,114260.0,8.14398049]
[1760292797168,1.73747296,114270.0,114260.0,8.14398049]
[1760292797368,1.64976497,114270.0,114260.0,8.14398049]
[1760292798058,1.56650392,114270.0,114260.0,8.14398049]
[1760292798688,1.69325512,114270.0,114260.0,8.14398049]
[1760292798882,0.87931284,114270.0,114260.0,8.14398049]
[1760292799081,0.96803218,114270.0,114260.0,8.14398049]
[1760292799371,1.83848261,114270.0,114260.0,8.14398049]
[1760292799522,1.83848457,114270.0,114260.0,8.14398049]
[1760292799925,1.04775573,114270.0,114260.0,8.14398049]
[1760292800128,1.86981673,114270.0,114260.0,8.14398049]
[1760292800332,1.84642729,114270.0,114260.0,8.14398049]
[1760292800527,1.04775661,114270.0,114260.0,8.14398049]
[1760292800851,1.86981761,114270.0,114260.0,8.14398049]
[1760292801046,0.94775662,114270.0,114260.0,8.14398049]
[1760292801205,1.86981761,114270.0,114260.0,8.14398049]
[1760292801404,1.84642729,114270.0,114260.0,8.14398049]
[1760292801619,1.02436629,114270.0,114260.0,8.14398049]
[1760292801815,1.84642729,114270.0,114260.0,8.14398049]
[1760292802016,1.7464273,114270.0,114260.0,8.14398049]
[1760292802291,1.84642729,114270.0,114260.0,8.14398049]
[1760292802603,1.7464273,114270.0,114260.0,8.14398049]
[1760292802831,1.02436629,114270.0,114260.0,8.14398049]
[1760292803222,1.84642729,114270.0,114260.0,8.14398049]
[1760292803580,1.02436629,114270.0,114260.0,8.14398049]
[1760292803782,1.84642729,114270.0,114260.0,8.14398049]
[1760292805074,1.7464273,114270.0,114260.0,8.14398049]
[1760292805274,2.20928485,114270.0,114260.0,8.14398049]
[1760292805524,2.30928484,114270.0,114260.0,8.14398049]
[1760292806530,2.30913247,114270.0,114260.0,8.09664157]
[1760292807298,1.48607147,114270.0,114260.0,8.09664157]
[1760292807653,1.86193247,114270.0,114260.0,8.09664157]
[1760292807888,1.03987147,114270.0,114260.0,8.09664157]
[1760292808059,1.86093247,114270.0,114260.0,8.09664157]
[1760292808480,1.86193247,114270.0,114260.0,8.09664157]
[1760292808738,1.91298858,114270.0,114260.0,7.67051335]
[1760292809272,1.06169992,114270.0,114260.0,7.67051335]
[1760292809477,1.93059826,114270.0,114260.0,7.67051335]
[1760292810142,1.91500539,114270.0,114260.0,7.02404061]
[1760292810276,1.90827434,114270.0,114260.0,6.77323903]
[1760292810479,1.95511168,114270.0,114260.0,6.56034811]
[1760292810719,1.95511168,114270.0,114260.0,6.3977787]
[1760292810919,1.95511168,114270.0,114260.0,6.22749834]
[1760292811087,1.95511168,114270.0,114260.0,6.12780483]
[1760292811290,1.91511168,114270.0,114260.0,5.87289405]
[1760292811489,1.86827434,114270.0,114260.0,5.66491423]
[1760292811690,1.91511168,114270.0,114260.0,5.27950144]
[1760292811887,1.91511168,114270.0,114260.0,5.15609068]
[1760292811888,1.82257767,114270.0,114260.0,5.15609068]
[1760292812100,1.13762767,114270.0,114260.0,4.89583877]
[1760292812317,1.13762767,114270.0,114260.0,4.7949355]
[1760292812576,1.74795925,114270.0,114260.0,4.61691317]
[1760292812819,1.74795925,114270.0,114260.0,4.41435498]
[1760292813003,1.11311425,114270.0,114260.0,4.23957495]
[1760292813248,1.06627691,114270.0,114260.0,3.98734109]
[1760292813405,1.68812191,114270.0,114260.0,3.80518347]
[1760292813603,1.68812191,114270.0,114260.0,3.64865201]
[1760292813783,1.68812191,114270.0,114260.0,3.55566428]
[1760292814171,1.73494528,114270.0,114260.0,3.15994697]
[1760292814565,1.69108328,114270.0,114260.0,2.67346071]
[1760292814825,1.11310028,114270.0,114260.0,2.58557658]
[1760292815031,1.66408328,114270.0,114260.0,2.44385478]
[1760292815661,1.63733207,114270.0,114260.0,2.44385478]
[1760292815881,1.08634907,114270.0,114260.0,2.44385478]
[1760292816085,1.65831651,114270.0,114260.0,2.44385478]
[1760292816428,1.10733351,114270.0,114260.0,2.44385478]
[1760292816795,1.65831651,114270.0,114260.0,2.44385478]
[1760292817002,1.67203867,114270.0,114260.0,2.44385478]
[1760292817204,1.12105567,114270.0,114260.0,1.7375027]
[1760292817402,1.12105567,114270.0,114260.0,0.6554922]
[1760292817403,1.11877757,114270.0,114260.0,0.6554922]
[1760292817604,1.11877757,114270.0,114260.0,0.54039626]
[1760292817605,6.13513547,114270.0,114260.0,0.54039626]
[1760292817739,6.12638427,114270.0,114260.0,0.5002049]
[1760292817941,1.13113623,114270.0,114260.0,0.47390057]
[1760292818190,6.13113623,114270.0,114260.0,0.01757012]
[1760292818499,6.13113623,114270.0,114240.0,0.00978366]
[1760292818500,1.07020658,114250.0,114240.0,0.00978366]
[1760292818646,6.17866536,114250.0,114240.0,0.00983333]
[1760292818847,1.29637536,114250.0,114240.0,0.00983333]
[1760292819071,6.29637536,114250.0,114240.0,0.00983333]
[1760292819274,6.33644604,114250.0,114240.0,0.00983333]
[1760292819684,1.33644604,114250.0,114240.0,0.00983333]
[1760292820084,6.33644604,114250.0,114240.0,0.00983333]
[1760292820540,1.33644604,114250.0,114240.0,0.00983333]
[1760292820776,6.34044604,114250.0,114240.0,0.00983333]
[1760292821071,1.34044604,114250.0,114240.0,0.00983333]
[1760292821266,6.36318497,114250.0,114240.0,0.00983333]
[1760292821623,1.36318497,114250.0,114240.0,0.00983333]
[1760292821830,6.36318497,114250.0,114240.0,0.00983333]
[1760292822458,5.8267222,114250.0,114240.0,0.00983333]
[1760292822656,5.81111946,114250.0,114240.0,0.00983333]
[1760292822861,0.81111946,114250.0,114240.0,0.00983333]
[1760292823090,5.81111946,114250.0,114240.0,0.00983333]
[1760292823296,5.91111945,114250.0,114240.0,0.00983333]
[1760292823599,0.91111945,114250.0,114240.0,0.00983333]
[1760292823740,5.91111945,114250.0,114240.0,0.00983333]
[1760292824794,0.93385838,114250.0,114240.0,0.00983333]
[1760292824972,5.93385838,114250.0,114240.0,0.00983333]
[1760292825392,0.93385838,114250.0,114240.0,0.00983333]
[1760292825601,5.93385838,114250.0,114240.0,0.00983333]
[1760292825812,0.93385838,114250.0,114240.0,0.00983333]
[1760292826129,5.83385839,114250.0,114240.0,0.00983333]
[1760292826339,5.93385838,114250.0,114240.0,0.00983333]
[1760292826766,0.93385838,114250.0,114240.0,0.00983333]
[1760292827106,5.93385838,114250.0,114240.0,0.00983333]
[1760292827726,0.94946112,114250.0,114240.0,0.00983333]
[1760292827935,5.94946112,114250.0,114240.0,0.00983333]
[1760292828401,0.64007,114240.0,114230.0,0.0004]
[1760292828625,5.75722022,114240.0,114230.0,0.00054886]
[1760292828825,5.80421023,114240.0,114230.0,0.00054886]
[1760292829024,5.90421022,114240.0,114230.0,0.00054886]
[1760292829230,0.93055335,114240.0,114230.0,0.00054886]
[1760292829430,5.95329228,114240.0,114230.0,0.00054886]
[1760292829859,5.95629228,114240.0,114230.0,0.00054886]
[1760292830074,0.95629228,114240.0,114230.0,0.00054886]
[1760292830282,5.95629228,114240.0,114230.0,0.00054886]
[1760292830613,0.95629228,114240.0,114230.0,0.00054886]
[1760292830984,5.95629228,114240.0,114230.0,0.00054886]
[1760292832307,5.85629229,114240.0,114230.0,0.00054886]
[1760292832663,5.95629228,114240.0,114230.0,0.00054886]
[1760292834053,5.95629228,114240.0,114230.0,0.00111278]
[1760292834259,5.95632376,114240.0,114230.0,0.00111278]
[1760292834660,5.93358483,114240.0,114230.0,0.00111278]
[1760292834863,0.93358483,114240.0,114230.0,0.00111278]
[1760292835188,0.82314639,114240.0,114230.0,0.00111278]
[1760292835398,5.82314639,114240.0,114230.0,0.00111278]
[1760292835633,5.27792447,114240.0,114230.0,0.00111278]
[1760292835802,5.2620009,114240.0,114230.0,0.00111278]
[1760292836005,5.2590009,114240.0,114230.0,0.00111278]
[1760292836210,5.2600009,114240.0,114230.0,0.00111278]
[1760292836371,5.57655616,114240.0,114230.0,0.00111278]
[1760292836576,5.23655616,114240.0,114230.0,0.00111278]
[1760292836771,5.57555616,114240.0,114230.0,0.00111278]
[1760292837173,0.57555616,114240.0,114230.0,0.00111278]
[1760292837380,5.57555616,114240.0,114230.0,0.17619813]
[1760292837612,5.38508616,114240.0,114230.0,0.34852813]
[1760292838219,0.38508616,114240.0,114230.0,0.34852813]
[1760292838420,0.34,114240.0,114230.0,0.34852813]
[1760292838636,5.56117502,114250.0,114240.0,0.17507002]
[1760292838973,0.14760474,114270.0,114260.0,0.17503938]
[1760292839117,5.16496,114270.0,114260.0,0.17503938]
[1760292839319,5.55005224,114270.0,114260.0,0.23560938]
[1760292839522,5.10190005,114270.0,114260.0,0.23560938]
[1760292839733,5.10190005,114270.0,114260.0,0.23460938]
[1760292839925,5.06713005,114270.0,114260.0,0.26062938]
[1760292840149,5.34,114270.0,114260.0,0.34474938]
[1760292840405,5.42543,114270.0,114260.0,0.26062938]
[1760292840831,5.08543,114270.0,114260.0,0.26062938]
[1760292841164,5.08543,114270.0,114260.0,0.34474938]
[1760292841165,5.34,114270.0,114260.0,0.34474938]
[1760292841367,0.42577,114270.0,114260.0,0.26062938]
[1760292842000,0.50457,114270.0,114260.0,0.26062938]
[1760292842203,0.50457,114270.0,114260.0,0.20005938]
[1760292842409,0.34,114260.0,114250.0,0.1750547]
[1760292842708,0.42515,114260.0,114250.0,0.2358547]
[1760292842937,0.34,114260.0,114250.0,0.3631947]
[1760292844043,0.38085,114260.0,114250.0,0.2790747]
[1760292844214,0.50342,114260.0,114250.0,0.1750547]
[1760292844537,5.50342,114260.0,114250.0,0.1750547]
[1760292845588,5.50342,114260.0,114240.0,0.27147352]
[1760292845791,5.46141,114250.0,114240.0,0.04208]
[1760292846029,0.46141,114250.0,114240.0,0.04208]
[1760292846239,0.50263,114250.0,114240.0,0.04208]
[1760292846644,5.50263,114250.0,114240.0,0.04208]
[1760292846860,0.6776847,114250.0,114240.0,0.04208]
[1760292847304,5.6776847,114250.0,114240.0,0.04208]
[1760292847715,5.50263,114250.0,114240.0,0.04208]
[1760292850622,5.50263,114250.0,114240.0,0.27795002]
[1760292850797,0.34,114250.0,114240.0,0.40536002]
[1760292851021,5.54464,114270.0,114260.0,0.17503938]
[1760292851267,5.0,114270.0,114260.0,0.35457938]
[1760292851458,5.0,114270.0,114260.0,0.27045938]
[1760292851661,5.36927,114270.0,114260.0,0.27045938]
[1760292851854,5.02927,114270.0,114260.0,0.27045938]
[1760292852062,5.07379,114270.0,114260.0,0.27045938]
[1760292852272,5.41379,114270.0,114260.0,0.27045938]
[1760292852473,5.07379,114270.0,114260.0,0.27045938]
[1760292852789,5.41379,114270.0,114260.0,0.27045938]
[1760292853939,5.50207,114270.0,114260.0,0.17503938]
[1760292855026,5.34,114270.0,114260.0,0.35457938]
[1760292855377,5.36971,114270.0,114260.0,0.27045938]
[1760292855600,5.34,114270.0,114260.0,0.27045938]
[1760292855802,5.34,114270.0,114260.0,0.35457938]
[1760292856207,0.34,114270.0,114260.0,0.35457938]
[1760292861342,0.36927,114270.0,114260.0,0.27045938]
[1760292862626,0.50207,114270.0,114260.0,0.20965938]
[1760292864086,0.50207,114270.0,114260.0,0.17503938]
[1760292864322,0.50207,114270.0,114260.0,0.23583938]
[1760292864630,0.50207,114270.0,114260.0,0.17503938]
[1760292866188,0.52082658,114270.0,114260.0,0.17503938]
[1760292866388,0.52082658,114270.0,114260.0,0.23583938]
[1760292866517,0.35875658,114270.0,114260.0,0.35457938]
[1760292866724,0.34,114270.0,114260.0,0.35457938]
[1760292867346,0.34,114270.0,114260.0,0.27045938]
[1760292867545,0.34,114270.0,114260.0,0.35457938]
[1760292867923,5.61812895,114290.0,114280.0,0.17500875]
[1760292868120,5.52781303,114290.0,114280.0,0.27006875]
[1760292868344,0.34,114280.0,114270.0,0.20928406]
[1760292868578,0.41352,114280.0,114270.0,0.20928406]
[1760292868772,0.41352,114280.0,114270.0,0.27008406]
[1760292869081,0.41401653,114280.0,114270.0,0.27008406]
[1760292871233,0.35400653,114280.0,114270.0,0.27008406]
[1760292871415,0.34049653,114280.0,114270.0,0.35800406]
[1760292874269,0.02537653,114280.0,114270.0,0.27008406]
[1760292874512,0.00049653,114280.0,114270.0,0.35800406]
[1760292875239,0.02537653,114280.0,114270.0,0.27008406]
[1760292875461,0.00049653,114280.0,114270.0,0.35800406]
[1760292885971,0.07162362,114310.0,114300.0,0.17497812]
[1760292886197,0.07175394,114310.0,114300.0,0.30209024]
[1760292886350,0.00013032,114310.0,114300.0,0.38555024]
[1760292892796,0.00013032,114310.0,114300.0,0.26621812]
[1760292893199,0.00013032,114310.0,114300.0,0.34967812]
[1760292893819,5.4769095,114320.0,114310.0,0.17496282]
[1760292894010,5.4769095,114320.0,114300.0,0.39171812]
[1760292894011,0.720696,114310.0,114300.0,0.04204]
[1760292894210,0.64063179,114310.0,114300.0,0.04204]
[1760292894483,5.77691442,114310.0,114300.0,0.04204]
[1760292895087,5.77633605,114310.0,114300.0,0.03645695]
[1760292895500,0.77633605,114310.0,114300.0,0.03645695]
[1760292895753,5.77733605,114310.0,114300.0,0.03645695]
[1760292895911,0.77733605,114310.0,114300.0,0.03645695]
[1760292896116,5.77733605,114310.0,114300.0,0.03645695]
[1760292896346,5.75473342,114310.0,114300.0,0.03645695]
[1760292897427,0.75473342,114310.0,114300.0,0.03645695]
[1760292897637,5.75473342,114310.0,114300.0,0.03645695]
[1760292898232,5.78105748,114310.0,114300.0,0.03645695]
[1760292898432,0.78105748,114310.0,114300.0,0.03645695]
[1760292898658,5.78105748,114310.0,114300.0,0.03645695]
[1760292898936,0.78105748,114310.0,114300.0,0.03645695]
[1760292899158,5.78105748,114310.0,114300.0,0.03645695]
[1760292900979,0.78105748,114310.0,114300.0,0.03645695]
[1760292901210,5.78105748,114310.0,114300.0,0.03645695]
[1760292901449,0.78105748,114310.0,114300.0,0.03645695]
[1760292901672,5.78105748,114310.0,114300.0,0.03645695]
[1760292902783,5.75758946,114310.0,114300.0,0.03645695]
[1760292903478,0.75758946,114310.0,114300.0,0.03645695]
[1760292903683,5.75758946,114310.0,114300.0,0.03645695]
[1760292903921,0.75758946,114310.0,114300.0,0.03645695]
[1760292904123,5.75758946,114310.0,114300.0,0.03645695]
[1760292904496,0.75758946,114310.0,114300.0,0.03645695]
[1760292904697,5.75758946,114310.0,114300.0,0.03645695]
[1760292905318,5.78105748,114310.0,114300.0,0.03645695]
[1760292905735,0.78105748,114310.0,114300.0,0.03645695]
[1760292905945,5.78105748,114310.0,114300.0,0.03645695]
[1760292906405,5.74945655,114310.0,114300.0,0.03645695]
[1760292907509,0.74945655,114310.0,114300.0,0.03645695]
[1760292907726,5.74945655,114310.0,114300.0,0.03645695]
[1760292908184,5.0,114300.0,114290.0,0.17499255]
[1760292908416,5.0,114300.0,114290.0,0.20892255]
[1760292908646,0.43942569,114310.0,114300.0,0.23277812]
[1760292908647,0.001,114310.0,114300.0,0.23277812]
[1760292908866,0.001,114310.0,114300.0,0.34841812]
[1760292909090,0.341,114310.0,114300.0,0.34841812]
[1760292909315,0.39686,114310.0,114300.0,0.09173]
[1760292909531,5.50102,114310.0,114300.0,0.17497812]
[1760292909742,5.50002,114310.0,114300.0,0.17497812]
[1760292909975,5.50002,114310.0,114290.0,0.20892255]
[1760292910180,5.0,114300.0,114290.0,0.20892255]
[1760292910613,5.05586,114300.0,114290.0,0.26672255]
[1760292910832,0.05586,114300.0,114290.0,0.26672255]
[1760292911040,5.66002,114300.0,114280.0,0.25844662]
[1760292911224,1.154758,114290.0,114280.0,0.24969875]
[1760292911437,1.213848,114290.0,114280.0,0.24969875]
[1760292911735,0.34,114290.0,114280.0,0.38920875]
[1760292911943,0.88989916,114320.0,114310.0,0.17496282]
[1760292912145,5.34482916,114320.0,114310.0,0.34840282]
[1760292912365,0.34482916,114320.0,114310.0,0.34840282]
[1760292912496,0.37791916,114320.0,114310.0,0.26669282]
[1760292914717,0.42286916,114320.0,114310.0,0.26669282]
[1760292918594,0.50460916,114320.0,114310.0,0.17496282]
[1760292918799,0.50460916,114320.0,114300.0,0.20890812]
[1760292919239,0.50460916,114320.0,114310.0,0.23276282]
[1760292919446,0.50460916,114320.0,114310.0,0.0578]
[1760292919748,0.50460916,114320.0,114310.0,0.23276282]
[1760292920314,0.50460916,114320.0,114310.0,0.26669282]
[1760292921332,0.42286916,114320.0,114310.0,0.26669282]
[1760292922502,0.52286916,114320.0,114310.0,0.26669282]
[1760292923721,0.10482916,114320.0,114310.0,0.34840282]
[1760292924148,0.44482916,114320.0,114310.0,0.39072186]
[1760292924364,0.44482916,114320.0,114310.0,0.34840282]
[1760292928676,0.47791916,114320.0,114310.0,0.26669282]
[1760292928920,0.47791916,114320.0,114310.0,0.17496282]
[1760292928921,0.60460916,114320.0,114310.0,0.17496282]
[1760292929125,5.60460916,114320.0,114300.0,0.03393]
[1760292929303,5.38507,114310.0,114300.0,0.17497637]
[1760292929531,5.04507,114310.0,114300.0,0.17497637]
[1760292929744,5.0,114310.0,114300.0,0.26281637]
[1760292929922,5.64989916,114320.0,114310.0,0.17496282]
[1760292930126,5.18211916,114320.0,114310.0,0.17496282]
[1760292930306,0.10482916,114320.0,114310.0,0.34674282]
[1760292930715,0.10482916,114320.0,114310.0,0.25981282]
[1760292930921,0.13924916,114320.0,114310.0,0.25981282]
[1760292931506,0.26678916,114320.0,114310.0,0.17496282]
[1760292932263,0.26678916,114320.0,114310.0,0.21700282]
[1760292932464,5.60678916,114320.0,114310.0,0.21700282]
[1760292932999,5.52200916,114320.0,114310.0,0.27091282]
[1760292933259,5.52200916,114320.0,114310.0,0.30185282]
[1760292934184,0.44482916,114320.0,114310.0,0.44855174]
[1760292934659,0.47924916,114320.0,114310.0,0.36162174]
[1760292934888,0.47924916,114320.0,114310.0,0.30185282]
[1760292935305,0.52200916,114320.0,114310.0,0.30185282]
[1760292938363,5.60678916,114320.0,114310.0,0.21700282]
[1760292941665,5.60678916,114320.0,114310.0,0.04204]
[1760292941876,5.80053969,114320.0,114310.0,0.04204]
[1760292942532,5.85701253,114320.0,114310.0,0.04204]
[1760292942956,0.88045426,114320.0,114310.0,0.04204]
[1760292943165,5.88045426,114320.0,114310.0,0.04204]
[1760292943371,0.88045426,114320.0,114310.0,0.04204]
[1760292943575,5.88045426,114320.0,114310.0,0.04204]
[1760292943780,5.88145426,114320.0,114310.0,0.04204]
[1760292944597,0.88145426,114320.0,114310.0,0.04204]
[1760292944867,5.88145426,114320.0,114310.0,0.04204]
[1760292945340,5.85801253,114320.0,114310.0,0.04204]
[1760292945551,0.85801253,114320.0,114310.0,0.04204]
[1760292946197,0.85801253,114320.0,114270.0,0.28932868]
[1760292946198,0.17498984,114300.0,114270.0,0.28932868]
[1760292946372,5.47128,114290.0,114280.0,0.21704875]
[1760292946547,5.52543,114290.0,114280.0,0.21704875]
[1760292947339,5.52543,114290.0,114280.0,0.04204]
[1760292947537,5.52543,114290.0,114280.0,0.21704875]
[1760292948955,5.52543,114290.0,114280.0,0.04204]
[1760292949395,5.52543,114290.0,114280.0,0.21704875]
[1760292949620,5.73057533,114290.0,114280.0,0.04204]
[1760292949836,5.74933104,114290.0,114280.0,0.04204]
[1760292951202,5.79777276,114290.0,114280.0,0.04204]
[1760292951727,5.81370365,114290.0,114280.0,0.04204]
[1760292951924,5.81470365,114290.0,114280.0,0.04204]
[1760292952055,5.82993621,114290.0,114280.0,0.04204]
[1760292952256,0.79868858,114290.0,114280.0,0.04204]
[1760292952494,5.79768858,114290.0,114280.0,0.04204]
[1760292952699,5.79868858,114290.0,114280.0,0.04204]
[1760292952905,5.59969516,114290.0,114280.0,0.04204]
[1760292953116,5.52743,114290.0,114280.0,0.21704875]
[1760292953510,0.52743,114290.0,114280.0,0.21704875]
[1760292953842,5.52643,114290.0,114280.0,0.21704875]
[1760292954054,0.62643,114290.0,114280.0,0.21704875]
[1760292954189,5.62643,114290.0,114280.0,0.21704875]
[1760292954635,5.62543,114290.0,114280.0,0.21704875]
[1760292955175,0.62643,114290.0,114280.0,0.21704875]
[1760292955379,5.62643,114290.0,114280.0,0.21704875]
[1760292955587,5.62543,114290.0,114280.0,0.21704875]
[1760292957681,5.65175577,114290.0,114280.0,0.04204]
[1760292957883,5.65175577,114290.0,114280.0,0.21704875]
[1760292958914,5.64975577,114290.0,114280.0,0.21704875]
[1760292959114,0.64975577,114290.0,114280.0,0.21704875]
[1760292959313,5.64975577,114290.0,114280.0,0.21704875]
[1760292960983,0.64975577,114290.0,114280.0,0.21704875]
[1760292961186,5.64975577,114290.0,114280.0,0.21704875]
[1760292962095,0.64975577,114290.0,114280.0,0.21704875]
[1760292962309,5.64975577,114290.0,114280.0,0.21704875]
[1760292962724,5.64975577,114290.0,114280.0,0.04204]
[1760292962947,5.64975577,114290.0,114280.0,0.21704875]
[1760292963131,0.64975577,114290.0,114280.0,0.21704875]
[1760292963878,0.1,114290.0,114280.0,0.39121875]
[1760292964081,0.53925,114290.0,114280.0,0.30485875]
[1760292964766,0.44,114290.0,114280.0,0.30485875]
[1760292964995,0.44,114290.0,114280.0,0.39121875]
[1760292965231,0.1,114290.0,114280.0,0.39121875]
[1760292965483,0.1,114290.0,114280.0,0.45083898]
[1760292969413,0.09791316,114290.0,114280.0,0.45083898]
[1760292972957,1e-08,114290.0,114280.0,0.45083898]
[1760292980810,1e-08,114290.0,114280.0,0.5705204]
[1760292981016,1e-08,114290.0,114280.0,1.339217]
[1760292982021,1e-08,114290.0,114280.0,0.5705204]
[1760292983886,1e-08,114290.0,114280.0,0.9105204]
[1760292984699,1e-08,114290.0,114280.0,0.45083898]
[1760292984898,1e-08,114290.0,114280.0,0.39121875]
[1760292986512,5.51230001,114290.0,114280.0,0.21804875]
[1760292986925,5.51230001,114290.0,114280.0,0.21904875]
[1760292987728,5.51230001,114290.0,114280.0,0.21804875]
[1760292987932,5.51230001,114290.0,114280.0,0.21904875]
[1760292988341,5.51230001,114290.0,114280.0,0.21804875]
[1760292993597,0.34000001,114290.0,114280.0,0.42588198]
[1760292996663,0.34000001,114290.0,114280.0,0.38357875]
[1760292997345,0.43017001,114290.0,114280.0,0.30178875]
[1760292998384,0.51198001,114290.0,114280.0,0.24958875]
[1760292998589,0.43017001,114290.0,114280.0,0.30178875]
[1760292998954,0.34000001,114290.0,114280.0,0.38357875]
[1760293000158,0.43017001,114290.0,114280.0,0.30178875]
[1760293000371,0.51198001,114290.0,114280.0,0.24958875]
[1760293000582,0.43017001,114290.0,114280.0,0.30178875]
[1760293002138,0.51198001,114290.0,114280.0,0.21804875]
[1760293002373,5.51198001,114290.0,114280.0,0.21804875]
[1760293002695,5.52011893,114290.0,114280.0,0.21804875]
[1760293002873,5.52011893,114290.0,114280.0,0.27024875]
[1760293003072,5.43830893,114290.0,114280.0,0.30178875]
[1760293003281,5.51793893,114290.0,114280.0,0.21804875]
[1760293003686,5.50980001,114290.0,114280.0,0.21804875]
[1760293004303,0.43017001,114290.0,114280.0,0.30167875]
[1760293004716,0.43831005,114290.0,114280.0,0.30167875]
[1760293005724,0.38790005,114290.0,114280.0,0.30167875]
[1760293005930,0.34814005,114290.0,114280.0,0.44417398]
[1760293006134,0.40149005,114290.0,114280.0,0.36052398]
[1760293006337,0.40149005,114290.0,114280.0,0.30167875]
[1760293006952,0.34814005,114290.0,114280.0,0.30167875]
[1760293007371,0.40149005,114290.0,114280.0,0.30167875]
[1760293007789,0.34000001,114290.0,114280.0,0.38532875]
[1760293007991,1e-08,114290.0,114280.0,0.44435998]
[1760293012557,0.34000001,114290.0,114280.0,0.44435998]
[1760293012758,5.34000001,114290.0,114280.0,0.44435998]
[1760293012956,0.34815858,114290.0,114280.0,0.38532875]
[1760293013192,0.40150858,114290.0,114280.0,0.30167875]
[1760293013364,0.34815858,114290.0,114280.0,0.38532875]
[1760293013599,0.34000001,114290.0,114280.0,0.38532875]
[1760293016536,0.39335001,114290.0,114280.0,0.30167875]
[1760293016774,0.43249001,114290.0,114280.0,0.30167875]
[1760293016969,0.37914001,114290.0,114280.0,0.30167875]
[1760293017214,0.39335001,114290.0,114280.0,0.30167875]
[1760293017486,5.52028307,114290.0,114280.0,0.21804875]
[1760293017697,5.34816307,114290.0,114280.0,0.30044875]
[1760293017912,5.44065307,114290.0,114280.0,0.30044875]
[1760293018178,5.52028307,114290.0,114280.0,0.21804875]
[1760293018383,5.53908729,114290.0,114280.0,0.21804875]
[1760293018787,0.53908729,114290.0,114280.0,0.21804875]
[1760293018992,5.53908729,114290.0,114280.0,0.21804875]
[1760293019139,5.71408072,114290.0,114280.0,0.21804875]
[1760293019343,0.71408072,114290.0,114280.0,0.21704875]
[1760293019544,5.71408072,114290.0,114280.0,0.21704875]
[1760293020256,0.53908729,114290.0,114280.0,0.21704875]
[1760293020472,5.53908729,114290.0,114280.0,0.21704875]
[1760293020879,0.53908729,114290.0,114280.0,0.21704875]
[1760293021082,5.53908729,114290.0,114280.0,0.21704875]
[1760293021439,0.53908729,114290.0,114280.0,0.21704875]
[1760293021617,5.53908729,114290.0,114280.0,0.21704875]
[1760293021831,0.53908729,114290.0,114280.0,0.21704875]
[1760293022042,5.53908729,114290.0,114280.0,0.21704875]
[1760293022404,0.53908729,114290.0,114280.0,0.21704875]
[1760293022658,5.53908729,114290.0,114280.0,0.21704875]
[1760293023984,0.34816307,114290.0,114280.0,0.29693875]
[1760293024197,0.34816307,114290.0,114280.0,0.37418875]
[1760293024450,0.40387307,114290.0,114280.0,0.29693875]
[1760293024606,0.06387307,114290.0,114280.0,0.29693875]
[1760293024980,0.05571001,114290.0,114280.0,0.29693875]
[1760293025177,0.39571001,114290.0,114280.0,0.29693875]
[1760293025728,0.39571001,114290.0,114280.0,0.29793875]
[1760293025928,0.43721001,114290.0,114280.0,0.29793875]
[1760293026132,5.52206292,114290.0,114280.0,0.21804875]
[1760293026734,5.44537292,114290.0,114280.0,0.29793875]
[1760293027340,5.34000001,114290.0,114280.0,0.29793875]
[1760293027562,5.39571001,114290.0,114280.0,0.29793875]
[1760293027758,5.40387333,114290.0,114280.0,0.29793875]
[1760293027965,5.40387333,114290.0,114280.0,0.29693875]
[1760293029142,1e-08,114290.0,114280.0,0.37418875]
[1760293029347,5.00000001,114290.0,114280.0,0.37418875]